[Event "Early-Titled-Tuesday-Blitz-March-05-2024"]
[Site "Chess.com"]
[Date "2024.03.05"]
[Round "2"]
[White "rikchessmx"]
[Black "KetiTsatsalashvili"]
[Result "1-0"]
[WhiteElo "2280"]
[BlackElo "2488"]
[TimeControl "180+1"]
[EndTime "8:19:05 PST"]
[Termination "rikchessmx won by resignation"]

1. e4 {[%clk 0:03:00.9]} 1... c5 {[%clk 0:02:59.4]} 2. Nf3 {[%clk 0:03:00.4]}
2... d6 {[%clk 0:02:59.5]} 3. d4 {[%clk 0:03:00.7]} 3... cxd4 {[%clk 0:03:00.4]}
4. Nxd4 {[%clk 0:03:00.9]} 4... Nf6 {[%clk 0:03:01]} 5. Nc3 {[%clk 0:03:00.4]}
5... Nc6 {[%clk 0:03:01.2]} 6. Bc4 {[%clk 0:02:58.8]} 6... e6 {[%clk 0:03:01.3]}
7. f3 {[%clk 0:02:55.5]} 7... a6 {[%clk 0:03:00.3]} 8. Be3 {[%clk 0:02:54.6]}
8... Qc7 {[%clk 0:03:00.2]} 9. Bb3 {[%clk 0:02:53.4]} 9... Be7 {[%clk
0:02:59.7]} 10. Qd2 {[%clk 0:02:53.6]} 10... b5 {[%clk 0:02:56.5]} 11. a3 {[%clk
0:02:52]} 11... Ne5 {[%clk 0:02:55.4]} 12. Qe2 {[%clk 0:02:43.2]} 12... Nc4
{[%clk 0:02:51.8]} 13. Ncxb5 {[%clk 0:02:40.1]} 13... axb5 {[%clk 0:02:46.4]}
14. Nxb5 {[%clk 0:02:40.1]} 14... Qb8 {[%clk 0:02:43.8]} 15. Qxc4 {[%clk
0:02:39.5]} 15... O-O {[%clk 0:02:39]} 16. Qc7 {[%clk 0:02:18.4]} 16... Qxb5
{[%clk 0:02:20.1]} 17. Qxe7 {[%clk 0:02:17.8]} 17... Ba6 {[%clk 0:02:17.7]} 18.
O-O-O {[%clk 0:02:09.7]} 18... d5 {[%clk 0:02:03.1]} 19. Bd4 {[%clk 0:02:06.7]}
19... Rfc8 {[%clk 0:01:39.8]} 20. Qb4 {[%clk 0:02:00.8]} 20... Qxb4 {[%clk
0:01:25.4]} 21. axb4 {[%clk 0:02:00.5]} 21... dxe4 {[%clk 0:01:06]} 22. Bxf6
{[%clk 0:01:58.5]} 22... gxf6 {[%clk 0:01:06.9]} 23. fxe4 {[%clk 0:01:58.7]}
23... Be2 {[%clk 0:01:05.2]} 24. Rde1 {[%clk 0:01:42.1]} 24... Rd8 {[%clk
0:00:52]} 25. Kb1 {[%clk 0:01:32.2]} 25... Rd2 {[%clk 0:00:44.3]} 26. h3 {[%clk
0:01:21.4]} 26... Bb5 {[%clk 0:00:19.6]} 27. g4 {[%clk 0:01:16.6]} 27... Rd4
{[%clk 0:00:14.7]} 28. c3 {[%clk 0:01:10.7]} 28... Rd2 {[%clk 0:00:11.4]} 29.
Bc2 {[%clk 0:01:05.3]} 29... Ba4 {[%clk 0:00:10.4]} 30. b3 {[%clk 0:01:01.6]}
30... Bc6 {[%clk 0:00:09.6]} 31. Kc1 {[%clk 0:00:58.9]} 31... Rf2 {[%clk
0:00:08.8]} 32. Rhf1 {[%clk 0:00:55.9]} 32... Rh2 {[%clk 0:00:08.4]} 33. Rh1
{[%clk 0:00:53.6]} 33... Rg2 {[%clk 0:00:07.9]} 34. Reg1 {[%clk 0:00:52.4]}
34... Rf2 {[%clk 0:00:07.7]} 35. Rf1 {[%clk 0:00:52.2]} 35... Re2 {[%clk
0:00:07.9]} 36. Re1 {[%clk 0:00:35.7]} 36... Ra1+ {[%clk 0:00:07.9]} 37. Bb1
{[%clk 0:00:32.9]} 37... Rg2 {[%clk 0:00:05.5]} 38. Rhg1 {[%clk 0:00:27.7]}
38... Rxg1 {[%clk 0:00:05.7]} 39. Rxg1 {[%clk 0:00:27.1]} 39... Bxe4 {[%clk
0:00:06.4]} 40. Kb2 {[%clk 0:00:27.4]} 40... Bxb1 {[%clk 0:00:05.3]} 41. Rxb1
{[%clk 0:00:26.2]} 41... Rxb1+ {[%clk 0:00:05.7]} 42. Kxb1 {[%clk 0:00:26.3]}
42... Kf8 {[%clk 0:00:06.6]} 43. b5 {[%clk 0:00:26]} 43... Ke7 {[%clk
0:00:07.5]} 44. c4 {[%clk 0:00:26.5]} 44... Kd6 {[%clk 0:00:08]} 45. b4 {[%clk
0:00:26.5]} 45... Kc7 {[%clk 0:00:06.9]} 46. Kc2 {[%clk 0:00:26.3]} 46... Kb6
{[%clk 0:00:05.5]} 47. Kd3 {[%clk 0:00:26]} 47... e5 {[%clk 0:00:05.4]} 48. Ke4
{[%clk 0:00:26.1]} 48... h6 {[%clk 0:00:05]} 49. h4 {[%clk 0:00:26.1]} 49... Kb7
{[%clk 0:00:05.3]} 50. c5 {[%clk 0:00:25.8]} 50... Kc7 {[%clk 0:00:05.7]} 51.
b6+ {[%clk 0:00:25.4]} 51... Kc6 {[%clk 0:00:05.7]} 52. b5+ {[%clk 0:00:25.5]}
52... Kb7 {[%clk 0:00:06.3]} 53. Kd5 {[%clk 0:00:24.2]} 53... Kc8 {[%clk
0:00:04.5]} 54. c6 {[%clk 0:00:23.7]} 54... Kb8 {[%clk 0:00:04.6]} 55. b7 {[%clk
0:00:21.5]} 55... Kc7 {[%clk 0:00:04.9]} 56. b6+ {[%clk 0:00:21.7]} 56... Kb8
{[%clk 0:00:05.1]} 57. Kd6 {[%clk 0:00:19.7]} 57... e4 {[%clk 0:00:05.4]} 58.
Kd7 {[%clk 0:00:19.9]} 58... e3 {[%clk 0:00:05.6]} 59. c7+ {[%clk 0:00:20.4]}
59... Kxb7 {[%clk 0:00:06.2]} 60. c8=Q+ {[%clk 0:00:20.8]} 60... Kxb6 {[%clk
0:00:06.6]} 61. Qe8 {[%clk 0:00:21.4]} 61... e2 {[%clk 0:00:06.3]} 62. Qxe2
{[%clk 0:00:21.6]} 1-0

[Event "Early-Titled-Tuesday-Blitz-March-05-2024"]
[Site "Chess.com"]
[Date "2024.03.05"]
[Round "2"]
[White "Hope_6"]
[Black "Predator0608"]
[Result "1-0"]
[WhiteElo "2824"]
[BlackElo "2555"]
[TimeControl "180+1"]
[EndTime "8:19:06 PST"]
[Termination "Hope_6 won by resignation"]

1. e4 {[%clk 0:02:59.8]} 1... c5 {[%clk 0:02:59]} 2. Nf3 {[%clk 0:03:00.2]} 2...
d6 {[%clk 0:02:59.6]} 3. d4 {[%clk 0:03:00.6]} 3... cxd4 {[%clk 0:03:00.5]} 4.
Nxd4 {[%clk 0:03:01.5]} 4... Nf6 {[%clk 0:03:01.1]} 5. Nc3 {[%clk 0:03:02]} 5...
a6 {[%clk 0:03:01.6]} 6. Be3 {[%clk 0:03:02.4]} 6... e5 {[%clk 0:03:02.1]} 7.
Nb3 {[%clk 0:03:02.5]} 7... Be6 {[%clk 0:03:02.1]} 8. f3 {[%clk 0:03:02.6]} 8...
Be7 {[%clk 0:03:02.4]} 9. Qd2 {[%clk 0:03:02.7]} 9... h5 {[%clk 0:03:02.3]} 10.
Nd5 {[%clk 0:03:02.2]} 10... Nxd5 {[%clk 0:03:01.4]} 11. exd5 {[%clk 0:03:02.3]}
11... Bf5 {[%clk 0:03:02.1]} 12. c4 {[%clk 0:03:01.5]} 12... a5 {[%clk
0:02:56.7]} 13. Rc1 {[%clk 0:03:00.9]} 13... b6 {[%clk 0:02:56.3]} 14. Be2
{[%clk 0:02:59.8]} 14... Nd7 {[%clk 0:02:56.3]} 15. O-O {[%clk 0:02:59.4]} 15...
O-O {[%clk 0:02:53.3]} 16. Na1 {[%clk 0:02:53.4]} 16... Bg6 {[%clk 0:02:49.9]}
17. Nc2 {[%clk 0:02:52.5]} 17... f5 {[%clk 0:02:39.2]} 18. f4 {[%clk 0:02:51.3]}
18... Nf6 {[%clk 0:02:32.6]} 19. Na3 {[%clk 0:02:46.9]} 19... Ne4 {[%clk
0:02:31.3]} 20. Qd1 {[%clk 0:02:39.3]} 20... h4 {[%clk 0:02:29.5]} 21. Nb5
{[%clk 0:02:35.1]} 21... Bf6 {[%clk 0:02:28.3]} 22. Rc2 {[%clk 0:02:30.8]} 22...
Be8 {[%clk 0:02:21.6]} 23. fxe5 {[%clk 0:01:57.2]} 23... Bxe5 {[%clk 0:02:01.9]}
24. Nd4 {[%clk 0:01:53.2]} 24... Bxd4 {[%clk 0:01:49.7]} 25. Qxd4 {[%clk
0:01:48.6]} 25... Nc5 {[%clk 0:01:47]} 26. Qf4 {[%clk 0:01:30.3]} 26... Bg6
{[%clk 0:01:33.1]} 27. Bd4 {[%clk 0:01:23.1]} 27... Re8 {[%clk 0:01:29.1]} 28.
Bf3 {[%clk 0:01:19.6]} 28... Qe7 {[%clk 0:01:22.8]} 29. Re2 {[%clk 0:01:15.9]}
29... Ne4 {[%clk 0:01:14.5]} 30. Bxb6 {[%clk 0:01:06.8]} 30... Bh7 {[%clk
0:01:02.4]} 31. Bxe4 {[%clk 0:00:56.8]} 31... fxe4 {[%clk 0:01:01.3]} 32. Qe3
{[%clk 0:00:56.5]} 32... a4 {[%clk 0:00:51.8]} 33. Bd4 {[%clk 0:00:54.9]} 33...
Rf8 {[%clk 0:00:50]} 34. Ref2 {[%clk 0:00:53.8]} 34... Rxf2 {[%clk 0:00:43.6]}
35. Rxf2 {[%clk 0:00:54.7]} 35... Rc8 {[%clk 0:00:44.5]} 36. b3 {[%clk
0:00:53.9]} 36... Rb8 {[%clk 0:00:44.1]} 37. h3 {[%clk 0:00:50.6]} 37... axb3
{[%clk 0:00:35.7]} 38. axb3 {[%clk 0:00:51.5]} 38... Rb7 {[%clk 0:00:34.7]} 39.
Kh2 {[%clk 0:00:48]} 39... Bg6 {[%clk 0:00:32.8]} 40. Rf4 {[%clk 0:00:43.6]}
40... Rb8 {[%clk 0:00:30.7]} 41. Rg4 {[%clk 0:00:42.9]} 41... Kh7 {[%clk
0:00:25.7]} 42. Qf4 {[%clk 0:00:39.9]} 42... Rxb3 {[%clk 0:00:24.1]} 43. Rxh4+
{[%clk 0:00:35.5]} 43... Kg8 {[%clk 0:00:24.3]} 44. Rg4 {[%clk 0:00:35.9]} 44...
Kh7 {[%clk 0:00:19.3]} 45. Rg3 {[%clk 0:00:25.6]} 45... Rxg3 {[%clk 0:00:18.4]}
46. Qxg3 {[%clk 0:00:26.5]} 46... Qc7 {[%clk 0:00:18.6]} 47. c5 {[%clk
0:00:25.1]} 47... Qe7 {[%clk 0:00:07.9]} 48. cxd6 {[%clk 0:00:25]} 48... Qd7
{[%clk 0:00:08.2]} 49. Qe5 {[%clk 0:00:23.8]} 49... Kg8 {[%clk 0:00:07.9]} 50.
Qe6+ {[%clk 0:00:22.3]} 50... Qf7 {[%clk 0:00:07]} 51. d7 {[%clk 0:00:21.4]} 1-0

[Event "Early-Titled-Tuesday-Blitz-March-05-2024"]
[Site "Chess.com"]
[Date "2024.03.05"]
[Round "2"]
[White "mbchess97"]
[Black "NowInChess"]
[Result "1-0"]
[WhiteElo "2496"]
[BlackElo "2258"]
[TimeControl "180+1"]
[EndTime "8:19:06 PST"]
[Termination "mbchess97 won by resignation"]

1. c4 {[%clk 0:03:00.9]} 1... e5 {[%clk 0:02:59.5]} 2. g3 {[%clk 0:03:01.1]}
2... d6 {[%clk 0:02:57.4]} 3. Bg2 {[%clk 0:03:00.1]} 3... g6 {[%clk 0:02:58]} 4.
Nc3 {[%clk 0:02:57.7]} 4... Bg7 {[%clk 0:02:58.2]} 5. h4 {[%clk 0:02:53.6]} 5...
h6 {[%clk 0:02:53.7]} 6. e3 {[%clk 0:02:48.5]} 6... f5 {[%clk 0:02:53.5]} 7. d4
{[%clk 0:02:45.2]} 7... e4 {[%clk 0:02:53.3]} 8. Nge2 {[%clk 0:02:44.2]} 8...
Nf6 {[%clk 0:02:51.7]} 9. Nf4 {[%clk 0:02:42.1]} 9... Kf7 {[%clk 0:02:47.2]} 10.
Qb3 {[%clk 0:02:25.6]} 10... c6 {[%clk 0:02:46.6]} 11. Bd2 {[%clk 0:02:15.5]}
11... Na6 {[%clk 0:02:45.7]} 12. f3 {[%clk 0:02:10]} 12... exf3 {[%clk
0:02:33.7]} 13. Bxf3 {[%clk 0:02:10.9]} 13... Re8 {[%clk 0:02:25.6]} 14. O-O-O
{[%clk 0:02:08.3]} 14... Nc7 {[%clk 0:02:22.5]} 15. Rde1 {[%clk 0:01:59.4]}
15... Ne6 {[%clk 0:02:03.7]} 16. Nd3 {[%clk 0:01:47.7]} 16... Kg8 {[%clk
0:01:48.6]} 17. d5 {[%clk 0:01:29.2]} 17... cxd5 {[%clk 0:01:32.7]} 18. cxd5
{[%clk 0:01:26.4]} 18... Nc5 {[%clk 0:01:28.3]} 19. Nxc5 {[%clk 0:01:25.1]}
19... dxc5 {[%clk 0:01:28.9]} 20. e4 {[%clk 0:01:02]} 20... fxe4 {[%clk
0:01:13.1]} 21. Nxe4 {[%clk 0:00:55.6]} 21... c4 {[%clk 0:01:08.7]} 22. Nxf6+
{[%clk 0:00:42.9]} 22... Qxf6 {[%clk 0:01:05]} 23. Qc3 {[%clk 0:00:41.3]} 23...
Bf5 {[%clk 0:00:51.1]} 24. Qxf6 {[%clk 0:00:36.2]} 24... Bxf6 {[%clk 0:00:52]}
25. Bxh6 {[%clk 0:00:32.5]} 25... c3 {[%clk 0:00:51.5]} 26. b3 {[%clk
0:00:29.6]} 26... Be7 {[%clk 0:00:40.7]} 27. Rxe7 {[%clk 0:00:15.7]} 27... Rxe7
{[%clk 0:00:40.1]} 28. Bg5 {[%clk 0:00:16.1]} 28... Rd7 {[%clk 0:00:29.7]} 29.
g4 {[%clk 0:00:16.5]} 29... Bd3 {[%clk 0:00:27.6]} 30. Rd1 {[%clk 0:00:16.6]}
30... Bb5 {[%clk 0:00:23.3]} 31. d6 {[%clk 0:00:17]} 31... Rf8 {[%clk
0:00:18.9]} 32. Bd5+ {[%clk 0:00:16.8]} 32... Kg7 {[%clk 0:00:19.4]} 33. Be7
{[%clk 0:00:16.4]} 33... Rf2 {[%clk 0:00:16.8]} 34. Be6 {[%clk 0:00:15.7]} 34...
Rxa2 {[%clk 0:00:12.7]} 35. Bxd7 {[%clk 0:00:14.9]} 35... Bxd7 {[%clk
0:00:12.4]} 36. Rd3 {[%clk 0:00:13.9]} 36... c2 {[%clk 0:00:11]} 37. Rc3 {[%clk
0:00:13.6]} 37... Bxg4 {[%clk 0:00:06.5]} 38. Rxc2 {[%clk 0:00:13.9]} 38...
Rxc2+ {[%clk 0:00:05.6]} 39. Kxc2 {[%clk 0:00:14.8]} 39... Kf7 {[%clk
0:00:05.5]} 40. Kc3 {[%clk 0:00:15.1]} 40... Ke6 {[%clk 0:00:05.8]} 41. Kd4
{[%clk 0:00:15.5]} 41... Kd7 {[%clk 0:00:06.3]} 42. Ke5 {[%clk 0:00:15.7]} 42...
a6 {[%clk 0:00:06.8]} 43. Kf6 {[%clk 0:00:16.1]} 43... Bh5 {[%clk 0:00:06.5]}
44. Kg5 {[%clk 0:00:16.1]} 44... Kc6 {[%clk 0:00:06.4]} 45. Kf6 {[%clk
0:00:16.4]} 45... Kd7 {[%clk 0:00:07]} 46. Kg5 {[%clk 0:00:16.5]} 46... b5
{[%clk 0:00:07]} 47. Kf4 {[%clk 0:00:16.4]} 47... a5 {[%clk 0:00:07.1]} 48. Ke5
{[%clk 0:00:16.8]} 48... a4 {[%clk 0:00:06.8]} 49. bxa4 {[%clk 0:00:17]} 49...
bxa4 {[%clk 0:00:07.7]} 50. Kd4 {[%clk 0:00:16.9]} 50... a3 {[%clk 0:00:08.3]}
51. Kc3 {[%clk 0:00:17.1]} 51... Be2 {[%clk 0:00:05.7]} 52. Kb3 {[%clk
0:00:16.4]} 52... a2 {[%clk 0:00:05.6]} 53. Kxa2 {[%clk 0:00:16.7]} 53... Bc4+
{[%clk 0:00:06.2]} 54. Kb2 {[%clk 0:00:17.3]} 54... Bf7 {[%clk 0:00:06.8]} 55.
Kc3 {[%clk 0:00:18]} 55... Ke6 {[%clk 0:00:05.7]} 56. Kd4 {[%clk 0:00:18.6]}
56... Be8 {[%clk 0:00:06.4]} 57. Kc5 {[%clk 0:00:18.7]} 57... Bd7 {[%clk
0:00:06.9]} 58. Kb6 {[%clk 0:00:18.8]} 58... Be8 {[%clk 0:00:07.4]} 59. Kc7
{[%clk 0:00:19.2]} 59... Bd7 {[%clk 0:00:08.1]} 60. Kd8 {[%clk 0:00:19.6]} 60...
Be8 {[%clk 0:00:09]} 61. Kxe8 {[%clk 0:00:19.7]} 1-0

[Event "Early-Titled-Tuesday-Blitz-March-05-2024"]
[Site "Chess.com"]
[Date "2024.03.05"]
[Round "2"]
[White "Dacean99"]
[Black "baki83"]
[Result "1-0"]
[WhiteElo "2569"]
[BlackElo "2808"]
[TimeControl "180+1"]
[EndTime "8:19:10 PST"]
[Termination "Dacean99 won on time"]

1. e4 {[%clk 0:03:00.9]} 1... c5 {[%clk 0:02:59.8]} 2. c3 {[%clk 0:03:00.8]}
2... e5 {[%clk 0:02:59.1]} 3. Nf3 {[%clk 0:02:59.9]} 3... Nc6 {[%clk 0:02:58.9]}
4. Bc4 {[%clk 0:02:59.6]} 4... Nf6 {[%clk 0:02:57]} 5. Ng5 {[%clk 0:02:55.3]}
5... d5 {[%clk 0:02:56.6]} 6. exd5 {[%clk 0:02:54.3]} 6... Nxd5 {[%clk
0:02:56.9]} 7. Qf3 {[%clk 0:02:50.4]} 7... Qxg5 {[%clk 0:02:56]} 8. Bxd5 {[%clk
0:02:50.3]} 8... Nd8 {[%clk 0:02:55.6]} 9. O-O {[%clk 0:02:49.7]} 9... Qf5
{[%clk 0:02:12.1]} 10. Re1 {[%clk 0:02:37.5]} 10... Bd6 {[%clk 0:02:07.5]} 11.
d4 {[%clk 0:02:34.7]} 11... Qxf3 {[%clk 0:02:05.5]} 12. Bxf3 {[%clk 0:02:34.9]}
12... f6 {[%clk 0:02:04.1]} 13. dxe5 {[%clk 0:02:34.4]} 13... Bxe5 {[%clk
0:02:03.8]} 14. Bf4 {[%clk 0:02:33.2]} 14... Nf7 {[%clk 0:02:02.4]} 15. Na3
{[%clk 0:02:07.1]} 15... O-O {[%clk 0:01:59.1]} 16. Bxe5 {[%clk 0:02:04.6]}
16... Nxe5 {[%clk 0:01:58.9]} 17. Bd5+ {[%clk 0:02:04.8]} 17... Kh8 {[%clk
0:01:59.1]} 18. Nc4 {[%clk 0:02:02.4]} 18... Nxc4 {[%clk 0:01:50.5]} 19. Bxc4
{[%clk 0:02:03.3]} 19... Bd7 {[%clk 0:01:48.6]} 20. Rad1 {[%clk 0:01:59.5]}
20... Bc6 {[%clk 0:01:48.1]} 21. Bd5 {[%clk 0:01:59.2]} 21... Rfe8 {[%clk
0:01:27.7]} 22. Bxc6 {[%clk 0:01:55.7]} 22... bxc6 {[%clk 0:01:27.2]} 23. Kf1
{[%clk 0:01:54]} 23... h5 {[%clk 0:01:22.7]} 24. Rd7 {[%clk 0:01:37]} 24...
Rxe1+ {[%clk 0:01:21.1]} 25. Kxe1 {[%clk 0:01:36.8]} 25... Rb8 {[%clk
0:01:21.6]} 26. b3 {[%clk 0:01:34.3]} 26... a5 {[%clk 0:01:15.1]} 27. Ra7 {[%clk
0:01:30.1]} 27... c4 {[%clk 0:01:13.5]} 28. Rxa5 {[%clk 0:01:21.7]} 28... cxb3
{[%clk 0:01:12.1]} 29. Rxh5+ {[%clk 0:01:18.6]} 29... Kg8 {[%clk 0:01:12.2]} 30.
axb3 {[%clk 0:01:18.8]} 30... Rxb3 {[%clk 0:01:12.4]} 31. Rc5 {[%clk 0:01:19.2]}
31... Rb6 {[%clk 0:01:12.4]} 32. Ke2 {[%clk 0:01:19.1]} 32... Kf7 {[%clk
0:01:12.8]} 33. h4 {[%clk 0:01:14.4]} 33... Ke6 {[%clk 0:01:12.9]} 34. Rc4
{[%clk 0:01:06.6]} 34... f5 {[%clk 0:00:53.6]} 35. Ke3 {[%clk 0:01:00.4]} 35...
Kd5 {[%clk 0:00:50.2]} 36. Rd4+ {[%clk 0:00:55.7]} 36... Ke6 {[%clk 0:00:33.4]}
37. h5 {[%clk 0:00:49.2]} 37... Rb3 {[%clk 0:00:30.1]} 38. Rc4 {[%clk
0:00:37.2]} 38... Kd5 {[%clk 0:00:29.9]} 39. Rd4+ {[%clk 0:00:35.2]} 39... Ke6
{[%clk 0:00:29.3]} 40. Kd3 {[%clk 0:00:27.9]} 40... Rb2 {[%clk 0:00:29.2]} 41.
Rf4 {[%clk 0:00:27.1]} 41... Ke5 {[%clk 0:00:27.2]} 42. Rf3 {[%clk 0:00:26.1]}
42... f4 {[%clk 0:00:25.3]} 43. g3 {[%clk 0:00:25.3]} 43... fxg3 {[%clk
0:00:24.9]} 44. fxg3 {[%clk 0:00:24.1]} 44... Rg2 {[%clk 0:00:20.3]} 45. Kc4
{[%clk 0:00:20.2]} 45... Kd6 {[%clk 0:00:14.2]} 46. Rd3+ {[%clk 0:00:20]} 46...
Kc7 {[%clk 0:00:12.3]} 47. Kc5 {[%clk 0:00:19.2]} 47... Re2 {[%clk 0:00:12.1]}
48. g4 {[%clk 0:00:17.7]} 48... Re5+ {[%clk 0:00:10.7]} 49. Kc4 {[%clk
0:00:17.3]} 49... Rg5 {[%clk 0:00:10.9]} 50. Rd4 {[%clk 0:00:17.2]} 50... Kb6
{[%clk 0:00:11]} 51. Rf4 {[%clk 0:00:16.6]} 51... Kc7 {[%clk 0:00:08.2]} 52. Kd3
{[%clk 0:00:16.3]} 52... Kd6 {[%clk 0:00:08.5]} 53. Ke3 {[%clk 0:00:16]} 53...
Ke6 {[%clk 0:00:07.6]} 54. Kf3 {[%clk 0:00:15.9]} 54... Rc5 {[%clk 0:00:07.9]}
55. c4 {[%clk 0:00:16.1]} 55... Ra5 {[%clk 0:00:08.2]} 56. Kg3 {[%clk
0:00:16.1]} 56... g5 {[%clk 0:00:01.1]} 57. Re4+ {[%clk 0:00:08.4]} 1-0

[Event "Early-Titled-Tuesday-Blitz-March-05-2024"]
[Site "Chess.com"]
[Date "2024.03.05"]
[Round "2"]
[White "Antipov_Mikhail_Al"]
[Black "ninguno46"]
[Result "1-0"]
[WhiteElo "2939"]
[BlackElo "2526"]
[TimeControl "180+1"]
[EndTime "8:19:11 PST"]
[Termination "Antipov_Mikhail_Al won on time"]

1. e4 {[%clk 0:02:59.9]} 1... c5 {[%clk 0:02:57.3]} 2. Nf3 {[%clk 0:02:59.9]}
2... Nc6 {[%clk 0:02:56.6]} 3. Bb5 {[%clk 0:02:59.9]} 3... d6 {[%clk 0:02:56.1]}
4. O-O {[%clk 0:02:59.3]} 4... Bd7 {[%clk 0:02:55.9]} 5. Re1 {[%clk 0:02:58.4]}
5... Nf6 {[%clk 0:02:55.2]} 6. h3 {[%clk 0:02:58.2]} 6... e6 {[%clk 0:02:52.5]}
7. c3 {[%clk 0:02:56.8]} 7... Be7 {[%clk 0:02:49.5]} 8. d4 {[%clk 0:02:53.6]}
8... cxd4 {[%clk 0:02:48.6]} 9. cxd4 {[%clk 0:02:54.5]} 9... d5 {[%clk
0:02:48.9]} 10. e5 {[%clk 0:02:54.3]} 10... Ne4 {[%clk 0:02:47.2]} 11. Bd3
{[%clk 0:02:53]} 11... Nb4 {[%clk 0:02:32]} 12. Bxe4 {[%clk 0:02:51]} 12... dxe4
{[%clk 0:02:31.2]} 13. Rxe4 {[%clk 0:02:51.9]} 13... Bc6 {[%clk 0:02:31.4]} 14.
Re3 {[%clk 0:02:47.2]} 14... Nd5 {[%clk 0:02:30.1]} 15. Re1 {[%clk 0:02:45.3]}
15... O-O {[%clk 0:02:20.4]} 16. Nbd2 {[%clk 0:02:43.1]} 16... Nb4 {[%clk
0:01:56.5]} 17. Ne4 {[%clk 0:02:34.9]} 17... Bxe4 {[%clk 0:01:52.3]} 18. Rxe4
{[%clk 0:02:35.8]} 18... Rc8 {[%clk 0:01:51.9]} 19. Bd2 {[%clk 0:02:32]} 19...
Nd5 {[%clk 0:01:42.9]} 20. Qb3 {[%clk 0:02:28.7]} 20... b6 {[%clk 0:01:35.5]}
21. Ree1 {[%clk 0:02:16.1]} 21... Qd7 {[%clk 0:01:32.4]} 22. Rac1 {[%clk
0:02:13.4]} 22... h6 {[%clk 0:01:30.6]} 23. Rxc8 {[%clk 0:02:08.5]} 23... Rxc8
{[%clk 0:01:29.5]} 24. Rc1 {[%clk 0:02:04.2]} 24... Rxc1+ {[%clk 0:01:28.1]} 25.
Bxc1 {[%clk 0:02:05.1]} 25... Qc6 {[%clk 0:01:26.5]} 26. Bd2 {[%clk 0:02:05.2]}
26... a5 {[%clk 0:01:24.9]} 27. a3 {[%clk 0:02:04.9]} 27... a4 {[%clk
0:01:21.3]} 28. Qd3 {[%clk 0:02:05.2]} 28... b5 {[%clk 0:01:21]} 29. Ne1 {[%clk
0:02:05.6]} 29... b4 {[%clk 0:01:08.3]} 30. axb4 {[%clk 0:01:58.9]} 30... Bxb4
{[%clk 0:01:07.6]} 31. Nc2 {[%clk 0:01:52]} 31... Bxd2 {[%clk 0:01:06.5]} 32.
Qxd2 {[%clk 0:01:52.9]} 32... Qb5 {[%clk 0:00:58.6]} 33. Ne3 {[%clk 0:01:50.9]}
33... Nxe3 {[%clk 0:00:35.9]} 34. fxe3 {[%clk 0:01:50.5]} 34... Qb3 {[%clk
0:00:31.6]} 35. Kh2 {[%clk 0:01:47.2]} 35... a3 {[%clk 0:00:30.9]} 36. bxa3
{[%clk 0:01:48.1]} 36... Qxa3 {[%clk 0:00:31.1]} 37. Kg3 {[%clk 0:01:42.1]}
37... Qb3 {[%clk 0:00:28.5]} 38. Kf2 {[%clk 0:01:41]} 38... g5 {[%clk
0:00:24.7]} 39. Qa5 {[%clk 0:01:38.1]} 39... Qc2+ {[%clk 0:00:23.3]} 40. Kg3
{[%clk 0:01:34.8]} 40... Qd3 {[%clk 0:00:20.3]} 41. Qa8+ {[%clk 0:01:33.4]}
41... Kg7 {[%clk 0:00:18.1]} 42. Qf3 {[%clk 0:01:34.3]} 42... Qd2 {[%clk
0:00:16.9]} 43. h4 {[%clk 0:01:33.3]} 43... Qe1+ {[%clk 0:00:13.8]} 44. Qf2
{[%clk 0:01:31]} 44... gxh4+ {[%clk 0:00:13.1]} 45. Kf3 {[%clk 0:01:31.6]} 45...
Qd1+ {[%clk 0:00:12.6]} 46. Qe2 {[%clk 0:01:23.1]} 46... Qh1 {[%clk 0:00:11.5]}
47. Kg4 {[%clk 0:01:20.3]} 47... h3 {[%clk 0:00:09.4]} 48. gxh3 {[%clk
0:01:18.8]} 48... Qg1+ {[%clk 0:00:09.2]} 49. Kf3 {[%clk 0:01:17.1]} 49... Qb1
{[%clk 0:00:03.7]} 50. Kf4 {[%clk 0:01:13.7]} 50... Qf5+ {[%clk 0:00:02.6]} 51.
Kg3 {[%clk 0:01:14.5]} 51... Qb1 {[%clk 0:00:02.6]} 52. h4 {[%clk 0:01:11.9]}
52... Qg1+ {[%clk 0:00:01.6]} 53. Kf4 {[%clk 0:01:10.2]} 53... Qb1 {[%clk
0:00:02]} 54. Qf3 {[%clk 0:01:01.3]} 54... Qf5+ {[%clk 0:00:01.4]} 55. Kg3
{[%clk 0:01:01.8]} 55... Qb1 {[%clk 0:00:02.3]} 56. Qg2 {[%clk 0:00:52.5]} 56...
Kh7 {[%clk 0:00:01.9]} 57. Qf3 {[%clk 0:00:35.4]} 57... Qg6+ {[%clk 0:00:01.2]}
58. Qg4 {[%clk 0:00:34.6]} 58... Qb1 {[%clk 0:00:02.1]} 59. Kf4 {[%clk
0:00:33.1]} 59... Qf1+ {[%clk 0:00:01.7]} 60. Qf3 {[%clk 0:00:33.5]} 60... Qc1
{[%clk 0:00:01.4]} 61. Qg2 {[%clk 0:00:28.3]} 1-0